Cogmind - Beta 10.2 @@@ ROGUE MODE // 2020.11.25 @ 13:05:57 // Halloween2020/ForbiddenLore Player: Luigi Panache Result: Destroyed by as-05444 with Assembled Maul Performance ------------- Evolutions (0) 0 Regions Visited (2) 400 Robots Destroyed (7) 35 Value Destroyed (128) 128 Prototype IDs (0) 0 Alien Tech Used (0) 0 Bonus (0) 0 TOTAL SCORE: 563 Bonus ------- None Cogmind --------- Core Integrity 0/250 Matter 253/300 Energy 87/100 System Corruption 0% Temperature Cool (0) Movement Core (50) Location -10/Mines Parts ------- > --- POWER (1) -------- (None) > --- PROPULSION (2) --- (None) > --- UTILITY (2) ------ Terrain Scanner > --- WEAPON (2) ------- (None) > --- INVENTORY (4) ---- Hover Unit Beam Cannon Assault Rifle Assault Rifle Peak State ------------ > --- POWER ------------ (None) > --- PROPULSION ------- Light Treads Hover Unit > --- UTILITY ---------- Heat Sink > --- WEAPON ----------- EM Pulse Gun Assault Rifle > --- INVENTORY -------- Hover Unit Beam Cannon Assault Rifle Grenade Launcher [Rating: 5] Favorites ----------- Power None Propulsion Light Treads Treads Light Treads Leg Aluminum Leg Hover Unit Hover Unit Utility Heat Sink Device Heat Sink Weapon EM Pulse Gun Energy Gun EM Pulse Gun Ballistic Gun Assault Rifle Launcher Rocket Launcher Special Weapon Welding Torch Build | -11 -10 -10 ------- Run | Scr Mat Min Slots Evolved . | . . . Power . | . . . Propulsion . | . . . Utility . | . . . Weapon . | . . . Parts Attached 11 | 4 3 4 Power . | . . . Engine . | . . . Core . | . . . Reactor . | . . . Propulsion 3 | 2 1 . Treads 1 | 1 . . Leg 1 | 1 . . Wheel . | . . . Hover 1 | . 1 . Flight . | . . . Utility 2 | . 1 1 Device 2 | . 1 1 Storage . | . . . Processor . | . . . Hackware . | . . . Protection . | . . . Artifact . | . . . Weapon 6 | 2 1 3 Energy Gun 1 | 1 . . Energy Cannon . | . . . Ballistic Gun 2 | 1 1 . Ballistic Cannon . | . . . Launcher 2 | . . 2 Special Weapon 1 | . . 1 Impact Weapon . | . . . Slashing Weapon . | . . . Piercing Weapon . | . . . Special Melee Weapon . | . . . Unidentified Prototypes . | . . . Parts Lost 7 | . 1 6 Power . | . . . Propulsion 3 | . 1 2 Utility 1 | . . 1 Weapon 3 | . . 3 Highest Loss Streak 5 | . 1 5 Average Slot Usage (%) 59 | . 60 56 Treads 14 | . 14 14 Leg 4 | . 7 . Hover 5 | . 6 3 Device 6 | . 4 12 Energy Gun 13 | . 14 11 Ballistic Gun 10 | . 14 2 Launcher 3 | . . 11 Naked Turns . | . . . Heaviest Build 7 | 4 5 7 Greatest Support 20 | 20 10 6 Greatest Overweight (x) 2 | . 1 2 Average Overweight (x) . | . . . Largest Inventory Capacity 4 | 4 4 4 Average Capacity 4 | 4 4 4 Most Carried 4 | . 4 4 Average Carried 2 | . 2 4 Final Capacity 4 | 4 4 4 Final Carried 4 | . 4 4 Class Distribution -------------------- 100% | Mutant Dominant Class ---------------- Mutant | -10/Materials Mutant | -10/Mines Resources | -11 -10 -10 ----------- Run | Scr Mat Min Matter Collected 334 | 226 59 49 Remotely . | . . . Salvage Created 143 | . 128 15 Parts 10 | . 9 1 Haulers Intercepted . | . . . Recyclers Shooed 1 | . . 1 Parts Field Recycled . | . . . Retrieved Matter . | . . . Parts Self-Destructed . | . . . Prevented . | . . . Kills | -11 -10 -10 ------- Run | Scr Mat Min Combat Hostiles Destroyed 10 | . 4 6 Guns 4 | . 4 . AOE 6 | . . 6 Classes Destroyed 3 | . 2 1 Swarmer 5 | . 2 3 Grunt 2 | . 2 . Assembled 3 | . . 3 Best Kill Streak 3 | . 2 3 Combat Bots Only 3 | . 2 3 Max Kills in Single Turn 3 | . 2 3 Gunslinging 1 | . 1 . Exploded 3 | . . 3 Melee . | . . . Uniques/NPCs Destroyed . | . . . Combat | -11 -10 -10 -------- Run | Scr Mat Min Damage Taken 884 | . 406 478 Core 252 | . 105 147 Absorbed by Shields . | . . . Core Remaining (%) 100 | 100 . . Volleys Fired 18 | . 11 7 Largest 2 | . 2 2 Hottest 73 | . 60 73 Shots Fired 36 | . 22 14 Gun 28 | . 22 6 Cannon . | . . . Launcher 7 | . . 7 Special 1 | . . 1 Kinetic 11 | . 11 . Thermal 1 | . . 1 Explosive 7 | . . 7 Electromagnetic 17 | . 11 6 Robot Hit Streak 12 | . 12 2 Robot Miss Streak 4 | . 2 4 Penetration Max . | . . . Secondary Targets 1 | . 1 . Max Gunslinging Chain 1 | . 1 . Shots Hit Robots 17 | . 15 2 Core Hits 13 | . 6 7 Critical Hits . | . . . Critical Kills . | . . . Critical Parts Destroyed . | . . . Melee Attacks . | . . . Impact . | . . . Slashing . | . . . Piercing . | . . . Sneak Attacks . | . . . Combat Hostiles . | . . . Follow-up Attacks . | . . . Damage Inflicted 645 | . 173 472 Guns 173 | . 173 . Cannons . | . . . Explosions 470 | . . 470 Melee . | . . . Ramming . | . . . Kinetic 89 | . 89 . Thermal 59 | . . 59 Explosive 413 | . . 413 Electromagnetic 84 | . 84 . Impact . | . . . Slashing . | . . . Piercing . | . . . Highest Corruption . | . . . Average Corruption . | . . . Corruption Purged . | . . . Overload Shots . | . . . Overflow Damage 13 | . . 13 Projectiles . | . . . Explosions 13 | . . 13 Melee . | . . . Knockbacks . | . . . Impact . | . . . Kinetic . | . . . Secondary . | . . . Self-Inflicted Damage 97 | . . 97 Shots 3 | . . 3 Rammed . | . . . Targets Rammed . | . . . Kicked . | . . . Crushed . | . . . Highest Temperature 8 | . 8 . Average Temperature 4 | . 4 . Received Heat Transfer 96 | . 96 . Siege Activations . | . . . Robots Corrupted . | . . . Combat Hostiles . | . . . Parts Fried . | . . . Impact Corruptions . | . . . Robots Melted . | . . . Combat Hostiles . | . . . Parts Melted . | . . . Heat Transferred 75 | . . 75 Parts Sabotaged . | . . . Parts Stolen . | . . . Parts Stripped . | . . . Power Chain Reactions . | . . . Missiles Intercepted . | . . . Alert | -11 -10 -10 ------- Run | Scr Mat Min Peak Influence 135 | . 135 132 Initial 52 | . . 52 Average 63 | . 56 106 Maximum Alert Level . | . . . Low Security (%) 100 | 100 100 100 Level 1 . | . . . Level 2 . | . . . Level 3 . | . . . Level 4 . | . . . Level 5 . | . . . High Security . | . . . Max Security . | . . . Squads Dispatched 2 | . 2 . Investigation 1 | . 1 . Extermination . | . . . Reinforcement 1 | . 1 . Assault . | . . . Garrison . | . . . Intercept . | . . . Construction Impeded . | . . . Haulers Reinforced . | . . . Stealth | -11 -10 -10 --------- Run | Scr Mat Min Distress Signals 1 | . 1 . Communications Jammed . | . . . Distress Signals . | . . . Times Spotted 24 | . 9 15 Peak Tracking Total 10 | . 4 10 Tactical Retreats . | . . . Traps | -11 -10 -10 ------- Run | Scr Mat Min Traps Triggered 1 | . 1 . Indirectly . | . . . Trap Hack Attempts . | . . . Triggered . | . . . Disarmed . | . . . Reprogrammed . | . . . Reused . | . . . Traps Extracted . | . . . Installed . | . . . Triggered . | . . . Machines | -11 -10 -10 ---------- Run | Scr Mat Min Machines Disabled 1 | . . 1 Max in Single Turn 1 | . . 1 Machines Sabotaged . | . . . Garrisons Compromised . | . . . Overloaded Fab Kills . | . . . Fab Network Shutdowns . | . . . Hacking | -11 -10 -10 --------- Run | Scr Mat Min Machines Accessed 1 | . 1 . Terminals 1 | . 1 . Fabricators . | . . . Repair Stations . | . . . Recycling Units . | . . . Scanalyzers . | . . . Garrison Access . | . . . Total Hacks 1 | . 1 . Successful 1 | . 1 . Failed . | . . . Catastrophic . | . . . Database Lockouts . | . . . Manual . | . . . Terminals 1 | . 1 . Fabricators . | . . . Repair Stations . | . . . Recycling Units . | . . . Scanalyzers . | . . . Garrison Access . | . . . Terminal Hacks 1 | . 1 . Alert Level 1 | . 1 . Fabricator Hacks . | . . . Repair Station Hacks . | . . . Recycling Unit Hacks . | . . . Scanalyzer . | . . . Garrison Access Hacks . | . . . Unauthorized Hacks . | . . . Terminals . | . . . Fabricators . | . . . Repair Stations . | . . . Recycling Units . | . . . Scanalyzers . | . . . Garrison Access . | . . . Data Cores Recovered . | . . . Used . | . . . Hacking Detections 1 | . 1 . Full Trace Events . | . . . Feedback Events . | . . . Feedback Blocked . | . . . Robot Schematics Acquired . | . . . Robots Built . | . . . Matter . | . . . Time . | . . . Total Robot Build Rating . | . . . Part Schematics Acquired . | . . . Parts Built . | . . . Matter . | . . . Time . | . . . Total Part Build Rating . | . . . Parts Repaired . | . . . Time . | . . . Parts Recycled . | . . . Recycled Matter . | . . . Retrieved Matter . | . . . Retrieved Components . | . . . Parts Scanalyzed . | . . . Part Schematics Acquired . | . . . Parts Damaged . | . . . Bothacking | -11 -10 -10 ------------ Run | Scr Mat Min Used RIF Installer . | . . . Robots Hacked . | . . . Non-combat . | . . . Combat . | . . . Robot Hacks Applied . | . . . Relay Couplers Released . | . . . Robots Rewired . | . . . Allies Hacked . | . . . Hacks Repelled . | . . . Allies | -11 -10 -10 -------- Run | Scr Mat Min Total Allies . | . . . Largest Group . | . . . Highest-Rated Group . | . . . Highest-Rated Ally . | . . . Total Orders . | . . . Ally Attacks . | . . . Total Damage . | . . . Kills . | . . . Allies Corrupted . | . . . Allies Melted . | . . . Intel | -11 -10 -10 ------- Run | Scr Mat Min Robot Analysis Total . | . . . Derelict Logs Recovered . | . . . Drone Launches . | . . . Drone Recoveries . | . . . Exploration | -11 -10 -10 ------------- Run | Scr Mat Min Turns Passed 393 | 45 239 109 Spaces Moved 298 | 34 204 60 Core 47 | 3 11 33 Treads 2 | 2 . . Legs 112 | 29 83 . Wheels . | . . . Hover 137 | . 110 27 Flight . | . . . Fastest Speed 50 | 50 80 50 Average Speed 100 | 116 97 101 Slowest Speed 160 | 160 120 150 Overloaded Moves . | . . . Propulsion Burnouts . | . . . Robots Hopped . | . . . Cave-ins Triggered . | . . . Exploration Rate (%) 18 | 3 37 14 Regions Visited 2 Branch Regions 1 Pre-discovered Areas 1 | . . 1 Known Exits Taken . | . . . Unknown Exits Taken 2 | 1 1 . Scrap Searched . | . . . Spaces Dug . | . . . Terrain Destroyed 86 | . . 86 Melee . | . . . Projectile . | . . . AOE 86 | . . 86 Terrain Rammed . | . . . Walls Destroyed . | . . . Machines Disabled . | . . . Actions | -11 -10 -10 --------- Run | Scr Mat Min Total 350 | 37 220 93 Wait 21 | . . 21 Move 296 | 33 203 60 Hop . | . . . Pick Up 3 | . 3 . Fast Attach 8 | 4 2 2 Attach . | . . . Detach . | . . . Swap 3 | . 1 2 Drop 1 | . . 1 Fire 18 | . 11 7 Melee . | . . . Ram . | . . . Kick . | . . . Crush . | . . . Escape Stasis . | . . . Rewire . | . . . Trap . | . . . Miscellaneous . | . . . Route ------- -11/Scrapyard -10/Materials -10/Mines History --------- Turn | Location | Event 4 | -11/Scrapyard | Discovered new exit (range 16) 46 | -11/Scrapyard | Entered Materials 279 | -10/Materials | Discovered new exit (range 8) 285 | -10/Materials | Entered Mines 286 | -10/Mines | Learned location of Storage (-7) 295 | -10/Mines | Met a Derelict bent on vengeance 327 | -10/Mines | Build established: Mutant 330 | -10/Mines | Received a Rocket Launcher from a helpful Derelict 351 | -10/Mines | Assembled infested the area 385 | -10/Mines | Core integrity fell below 50% 394 | -10/Mines | Destroyed by as-05444 with Assembled Maul Last Messages --------------- 00354_ R-06 Scavenger collects Grenade Launcher. 00356_ U-05 Engineer lays Concrete. 00357_ U-05 Engineer builds a Wall. 00357_ U-05 Engineer lays Concrete. 00359_ U-05 Engineer builds a Wall. 00372_ U-05 Engineer lays Concrete. 00375_ U-05 Engineer destroyed. 00378_ Acquired 25 matter. 00378_ Acquired 24 matter. 00378_ Heat Sink destroyed. 00379_ EM Pulse Gun destroyed. 00381_ Acquired Terrain Scanner. 00384_ Acquired Welding Torch. 00385_ as-45563 destroyed. 00385_ as-66882 destroyed. 00385_ as-81533 destroyed. 00386_ Welding Torch destroyed. 00390_ Knocked back. 00391_ Rocket Launcher destroyed. 00392_ Lgt. Treads destroyed. Map ----- +----------------------------------------------------+ | ?????????????????????????????? | | ?????????????????????????????? | | ?????????????????????????????? | | ?????????????????????????????? | | ?????????????????????????????? | | ?????????????????????????????? | | ?????????????????????????????? | | ?????????????????????????????? | | ?????????????????????????????? | | ?????????????????????????????? | | ?????! ??????????????????????? | | ?????%a??????????????????????? | | ????# ??????????????????????? | | ????! ??????????????????????? | | ????% ??????????????????????? | | ???? a ??????????????????????? | | ???? a??????????????????????? | | ?#?? ??????????????????????? | | ???? a#??#???????????????????? | | ????# #??????????????????????? | | ????# #??????????????????????? | | ????# #????#???????#?????????? | | ???## #??####????????????????? | | ???# #### ####?????????????? | | ???#aa# ##????????????? | | ??## @ ! #????????????? | | ??# aa = ##???????????? | | ??## = ##??????????? | | ???# #??????????? | | ???##### #??????????? | | ????????# #??????????? | | ??#?????# ##??????????? | | ????????# ##???????????? | | ????????# #????????????? | | ????????## #????????????? | | #????????# #????????????? | | ??????????# #????????????? | | ??????????? #????????????? | | ???????????## #####????????? | | ????????????# #????????? | | ???????????### ### #????????? | | ???????????# #?# #????????? | | ??????????# #?# ###??????? | | ?????????# #?# #??????? | | ?????????## ###?## #??????? | | ??????????# #????# #??????? | | ??????????# "????# #?????## | | ??????????# ????# #????## | | ?????????? ????# ###### | | ????????? "???# | +----------------------------------------------------+ Best States ------------- Heat Dissipation 35 Energy Generation 5 Energy Capacity 100 Matter Stores 300 Matter Capacity 300 Sight Range 16 Terrain Scan Range 14 Terrain Scan Density 10 Evasion (%) 49 Item Schematics ----------------- None Robot Schematics ------------------ None Fabricated ------------ Nothing Alien Tech Used ----------------- None Achievements -------------- None Challenges ------------ None Game ------ Seed ReflectiveOmegaStabilizer Manual? 0 Play Time 00:07:11 Cumulative 124.4 hours Start 2020.11.25 @ 12:57:18 End 2020.11.25 @ 13:05:57 Sessions 1 Manual Loads 0 Difficulty Rogue Special Mode Halloween2020/ForbiddenLore Game No. 86 Rogue 28 Adventurer 21 Explorer 37 Win Type - Total 6 Types 6/0/0/0/0/0/0/0/0 Lore% 47 Gallery% 70 Achievement% 57 Wizard Run 0 Options --------- ASCII 0 Keyboard 0 Movement Mouse Keybinds 0 Fullscreen 2 Font 18/Terminus Map View 76x50 Tactical HUD 1 Map Filters NONE Filters NONE Steam 1 RUN: 40093078-9f05-4585-8f71-2f2534d22471